bitfinex/quotes_BTCUSD_20240729
["timestamp","ask_amount","ask_price","bid_price","bid_amount"]
[1722226045604,0.68226184,69548.0,69547.0,0.003924]
[1722226045806,0.68226184,69548.0,69547.0,0.000924]
[1722226045920,0.68326184,69548.0,69547.0,0.000924]
[1722226046590,0.91331784,69548.0,69547.0,0.000924]
[1722226046807,0.91331784,69548.0,69547.0,0.007924]
[1722226046808,0.807196,69548.0,69547.0,0.007924]
[1722226047252,0.857196,69548.0,69547.0,0.007924]
[1722226048094,0.880196,69548.0,69547.0,0.007924]
[1722226048563,1.02329539,69548.0,69547.0,0.007924]
[1722226048968,0.880196,69548.0,69547.0,0.007924]
[1722226049383,0.980196,69548.0,69547.0,0.007924]
[1722226050500,1.348152,69548.0,69547.0,0.007924]
[1722226050657,1.448152,69548.0,69547.0,0.007924]
[1722226051199,1.59262954,69548.0,69547.0,0.007924]
[1722226051526,1.59162953,69548.0,69547.0,0.007924]
[1722226051735,1.73672892,69548.0,69547.0,0.007924]
[1722226051907,1.97496892,69548.0,69547.0,0.007924]
[1722226052062,1.83186953,69548.0,69547.0,0.007924]
[1722226052264,1.83186953,69548.0,69532.0,0.008899]
[1722226052265,0.05,69541.0,69532.0,0.008899]
[1722226052467,0.81094,69548.0,69525.0,0.008899]
[1722226052468,0.852904,69526.0,69525.0,0.008899]
[1722226052673,0.495268,69511.0,69510.0,0.42926131]
[1722226052903,1.064426,69511.0,69510.0,0.42926131]
[1722226053103,0.345292,69506.0,69505.0,0.008899]
[1722226053449,0.625487,69506.0,69505.0,0.008899]
[1722226053669,1.06222549,69506.0,69505.0,0.008899]
[1722226053875,1.019482,69506.0,69505.0,0.008899]
[1722226054223,0.789287,69506.0,69505.0,0.008899]
[1722226056441,1.019482,69506.0,69505.0,0.008899]
[1722226057053,1.1623102,69506.0,69505.0,0.008899]
[1722226057264,0.79843367,69506.0,69505.0,0.008899]
[1722226057843,0.56823867,69506.0,69505.0,0.008899]
[1722226058246,0.80743367,69506.0,69505.0,0.008899]
[1722226059306,0.57723867,69506.0,69505.0,0.008899]
[1722226059726,0.354292,69506.0,69505.0,0.008899]
[1722226059930,0.584487,69506.0,69505.0,0.008899]
[1722226060486,0.354292,69506.0,69505.0,0.008899]
[1722226060656,0.593487,69506.0,69505.0,0.009899]
[1722226060857,0.363292,69506.0,69505.0,0.009899]
[1722226061659,0.593487,69506.0,69505.0,0.009899]
[1722226062010,0.363292,69506.0,69505.0,0.009899]
[1722226062155,0.018,69506.0,69505.0,0.009899]
[1722226062485,0.018,69506.0,69505.0,0.01931675]
[1722226063011,0.363292,69506.0,69505.0,0.01931675]
[1722226063151,0.363292,69506.0,69505.0,0.009899]
[1722226063350,0.354292,69506.0,69505.0,0.008899]
[1722226063773,0.353292,69506.0,69505.0,0.008899]
[1722226064215,0.361292,69506.0,69505.0,0.008899]
[1722226065419,0.591487,69506.0,69505.0,0.008899]
[1722226066218,0.361292,69506.0,69505.0,0.008899]
[1722226067471,0.42071985,69506.0,69505.0,0.008899]
[1722226067698,0.40471985,69506.0,69505.0,0.008899]
[1722226067838,0.356292,69506.0,69505.0,0.009899]
[1722226068954,0.586487,69506.0,69505.0,0.009899]
[1722226070525,0.659487,69506.0,69505.0,0.009899]
[1722226070787,0.73896379,69506.0,69505.0,0.009899]
[1722226070986,0.659487,69506.0,69505.0,0.009899]
[1722226071569,0.653487,69506.0,69505.0,0.009899]
[1722226071773,0.659487,69506.0,69505.0,0.009899]
[1722226072107,0.654487,69506.0,69505.0,0.008899]
[1722226073115,0.65415499,69506.0,69505.0,0.008899]
[1722226073641,1.06194999,69506.0,69505.0,0.008899]
[1722226073941,1.12824999,69506.0,69505.0,0.009899]
[1722226074160,1.12224999,69506.0,69505.0,0.009899]
[1722226074300,1.11624999,69506.0,69505.0,0.008899]
[1722226074503,1.11624999,69506.0,69505.0,0.009899]
[1722226074727,1.12224999,69506.0,69505.0,0.009899]
[1722226074929,0.89205499,69506.0,69505.0,0.008899]
[1722226075129,0.89805499,69506.0,69505.0,0.009899]
[1722226076645,0.76015499,69506.0,69505.0,0.009899]
[1722226076913,0.76615499,69506.0,69505.0,0.009899]
[1722226078507,0.45695999,69506.0,69505.0,0.009899]
[1722226078949,0.68715499,69506.0,69505.0,0.009899]
[1722226079155,0.76015499,69506.0,69505.0,0.009899]
[1722226079392,0.75215499,69506.0,69505.0,0.008899]
[1722226079601,0.75615499,69506.0,69505.0,0.008899]
[1722226079800,0.82706991,69506.0,69505.0,0.008899]
[1722226080001,1.05326491,69506.0,69505.0,0.008899]
[1722226080419,1.05826491,69506.0,69505.0,0.008899]
[1722226080823,0.75715499,69506.0,69505.0,0.008899]
[1722226081026,0.47695999,69506.0,69505.0,0.008899]
[1722226081465,0.70715499,69506.0,69505.0,0.008899]
[1722226081744,0.70215499,69506.0,69505.0,0.008899]
[1722226081978,0.104,69506.0,69505.0,0.008899]
[1722226082186,0.352292,69506.0,69505.0,0.008899]
[1722226082399,0.678487,69506.0,69505.0,0.008899]
[1722226082811,0.737487,69506.0,69505.0,0.008899]
[1722226082955,0.753487,69506.0,69505.0,0.008899]
[1722226083175,0.748487,69506.0,69505.0,0.008899]
[1722226083480,0.751487,69506.0,69505.0,0.008899]
[1722226083621,0.755487,69506.0,69505.0,0.00856718]
[1722226085796,0.452292,69506.0,69505.0,0.00856718]
[1722226086125,0.453132,69506.0,69505.0,0.00856718]
[1722226086942,0.222937,69506.0,69505.0,0.00856718]
[1722226087344,0.453132,69506.0,69505.0,0.00856718]
[1722226087545,0.683327,69506.0,69505.0,0.00856718]
[1722226087979,0.706327,69506.0,69505.0,0.00856718]
[1722226088169,0.756327,69506.0,69505.0,0.00856718]
[1722226088570,0.87309084,69506.0,69505.0,0.00856718]
[1722226091314,0.91590987,69506.0,69505.0,0.00856718]
[1722226092231,0.87309084,69506.0,69505.0,0.00856718]
[1722226092934,0.756327,69506.0,69505.0,0.00856718]
[1722226093236,0.86347063,69506.0,69505.0,0.00856718]
[1722226093434,0.756327,69506.0,69505.0,0.00856718]
[1722226093591,0.82065218,69506.0,69505.0,0.00856718]
[1722226094196,0.84209298,69506.0,69505.0,0.00856718]
[1722226094401,0.756327,69506.0,69505.0,0.00856718]
[1722226095217,0.79240646,69506.0,69505.0,0.00856718]
[1722226095421,1.25877097,69506.0,69505.0,0.00856718]
[1722226096027,1.130122,69506.0,69505.0,0.00856718]
[1722226096450,1.14473424,69506.0,69505.0,0.00856718]
[1722226096879,1.130122,69506.0,69505.0,0.00856718]
[1722226097120,1.14473826,69506.0,69505.0,0.00856718]
[1722226098049,1.00113826,69506.0,69505.0,0.00856718]
[1722226098512,0.115114,69496.0,69492.0,0.12402]
[1722226098714,0.0014905,69495.0,69492.0,0.12402]
[1722226098941,0.115116,69495.0,69493.0,0.00957067]
[1722226099147,0.12922949,69495.0,69493.0,0.00957067]
[1722226099366,0.0011374,69495.0,69493.0,0.00637195]
[1722226099618,0.12922949,69495.0,69493.0,0.00637195]
[1722226099824,0.0015542,69494.0,69493.0,0.00637195]
[1722226100237,0.13080837,69494.0,69493.0,0.00637195]
[1722226100687,0.12926077,69494.0,69493.0,0.00637195]
[1722226100912,0.24577921,69494.0,69493.0,0.01437195]
[1722226101152,0.345352,69494.0,69493.0,0.01437195]
[1722226101602,0.39156394,69494.0,69493.0,0.00637195]
[1722226101855,0.345358,69493.0,69492.0,0.00498095]
[1722226102111,0.598597,69493.0,69492.0,0.00498095]
[1722226102336,0.878836,69493.0,69492.0,0.00498095]
[1722226102825,0.598597,69493.0,69492.0,0.00498095]
[1722226103059,0.00241232,69495.0,69492.0,0.08178095]
[1722226103290,0.00241232,69495.0,69492.0,0.14568095]
[1722226103291,0.11752832,69495.0,69492.0,0.14568095]
[1722226103546,0.001,69493.0,69492.0,0.14568095]
[1722226103804,0.001,69493.0,69492.0,0.26080195]
[1722226104285,0.0015542,69498.0,69492.0,0.26080195]
[1722226104286,0.0015542,69498.0,69492.0,0.14568095]
[1722226104518,0.13025719,69494.0,69493.0,0.115119]
[1722226104761,0.001,69494.0,69493.0,0.115119]
[1722226104996,0.12925719,69495.0,69493.0,0.115119]
[1722226105267,0.12925719,69495.0,69494.0,0.575587]
[1722226105508,0.00084,69506.0,69500.0,0.115107]
[1722226105509,0.12925719,69501.0,69500.0,0.115107]
[1722226105744,0.12925719,69501.0,69492.0,0.14568095]
[1722226106032,0.12929076,69499.0,69492.0,0.14568095]
[1722226106295,0.230213,69501.0,69492.0,0.26080095]
[1722226106551,0.001,69493.0,69492.0,0.26080095]
[1722226106790,0.24439198,69498.0,69493.0,0.115119]
[1722226107016,0.12928098,69498.0,69494.0,0.115117]
[1722226107235,0.12928098,69498.0,69493.0,0.115118]
[1722226107448,0.001,69494.0,69493.0,0.346357]
[1722226107654,0.001,69494.0,69493.0,0.001]
[1722226107859,0.00129009,69496.0,69492.0,0.26080095]
[1722226108037,0.00129009,69496.0,69493.0,0.115118]
[1722226108237,0.02258594,69497.0,69494.0,0.001]
[1722226108441,0.12928098,69496.0,69494.0,0.001]
[1722226108647,0.12928098,69496.0,69492.0,0.14568095]
[1722226108848,0.12928098,69496.0,69493.0,0.115119]
[1722226109115,0.13028098,69496.0,69492.0,0.14768095]
[1722226109318,0.001,69496.0,69494.0,0.115117]
[1722226109624,0.12926372,69495.0,69493.0,0.001]
[1722226109922,0.13026481,69496.0,69495.0,0.115116]
[1722226110126,0.001,69496.0,69495.0,0.115116]
[1722226110319,0.115107,69500.0,69495.0,0.115116]
[1722226110615,0.1302723,69496.0,69495.0,0.115116]
[1722226110831,0.002,69496.0,69495.0,0.115116]
[1722226111002,0.001,69496.0,69495.0,0.115116]
[1722226111208,0.115107,69500.0,69495.0,0.115116]
[1722226111434,0.001,69496.0,69495.0,0.117116]
[1722226111616,0.001,69496.0,69495.0,0.347348]
[1722226112596,0.13029777,69496.0,69495.0,0.347348]
[1722226112816,0.14545999,69502.0,69493.0,0.230239]
[1722226112817,0.115106,69501.0,69493.0,0.230239]
[1722226113018,0.115106,69501.0,69496.0,0.115112]
[1722226113019,0.14545999,69501.0,69496.0,0.115112]
[1722226113226,0.14545999,69501.0,69497.0,0.115112]
[1722226113641,0.001,69496.0,69495.0,0.231229]
[1722226113884,0.13131113,69496.0,69495.0,0.346345]
[1722226114148,0.13131113,69496.0,69495.0,0.345345]
[1722226114457,0.12931113,69496.0,69495.0,0.636177]
[1722226114686,0.12931113,69496.0,69495.0,0.712977]
[1722226115652,0.0225857,69500.0,69499.0,0.345328]
[1722226116095,0.0225857,69500.0,69499.0,0.344328]
[1722226117161,0.0225857,69500.0,69499.0,0.345328]
[1722226117328,0.0225857,69500.0,69499.0,0.344328]
[1722226117731,0.1454516,69504.0,69503.0,0.115102]
[1722226118050,0.1454516,69505.0,69503.0,0.115102]
[1722226118228,0.1462916,69506.0,69501.0,0.230211]
[1722226118433,0.1462916,69506.0,69503.0,0.115101]
[1722226119025,0.1462916,69506.0,69496.0,0.230228]
[1722226119026,0.00084,69506.0,69496.0,0.230228]
[1722226119235,0.12926568,69501.0,69496.0,0.230228]
[1722226119439,0.003,69505.0,69503.0,0.115102]
[1722226119610,0.003,69505.0,69501.0,0.115105]
[1722226119856,0.003,69505.0,69502.0,0.115104]
[1722226120273,0.00084,69506.0,69502.0,0.115104]
[1722226120400,0.117939,69506.0,69496.0,0.230228]
[1722226120623,0.115101,69504.0,69503.0,0.001]
[1722226120828,0.115099,69505.0,69500.0,0.115107]
[1722226121029,0.13768617,69504.0,69497.0,0.230224]
[1722226121233,0.12923462,69500.0,69495.0,0.36763]
[1722226121585,0.12923462,69500.0,69498.0,0.115111]
[1722226121586,0.0015542,69499.0,69498.0,0.115111]
[1722226122044,0.13077808,69499.0,69498.0,0.115111]
[1722226122225,0.13077808,69499.0,69493.0,0.000924]
[1722226122226,0.115115,69496.0,69493.0,0.000924]
[1722226122431,0.230224,69498.0,69493.0,0.000924]
[1722226122432,0.115117,69494.0,69493.0,0.000924]
[1722226123315,0.14537686,69496.0,69493.0,0.000924]
[1722226123521,0.001,69496.0,69493.0,0.008924]
[1722226123689,0.001,69496.0,69495.0,0.196516]
[1722226123926,0.12910272,69496.0,69495.0,0.311632]
[1722226124179,0.001,69499.0,69497.0,0.115112]
[1722226124356,0.0015542,69500.0,69497.0,0.114112]
[1722226124713,0.0015542,69501.0,69497.0,0.113112]
[1722226124918,0.0015542,69501.0,69496.0,0.0664]
[1722226125121,0.12909201,69497.0,69496.0,0.0664]
[1722226125326,0.12909201,69497.0,69496.0,0.411743]
[1722226125729,0.15167811,69497.0,69496.0,0.411743]
[1722226125933,0.0225861,69497.0,69496.0,0.38915686]
[1722226126297,0.001,69499.0,69498.0,0.344333]
[1722226126499,0.001,69499.0,69498.0,0.114111]
[1722226126721,0.12909201,69501.0,69498.0,0.114111]
[1722226126897,0.00142832,69500.0,69498.0,0.114111]
[1722226127104,0.002,69497.0,69496.0,0.05681386]
[1722226127401,0.001,69497.0,69496.0,0.15892786]
[1722226127652,0.00132437,69499.0,69496.0,0.15892786]
[1722226127824,0.00132437,69499.0,69498.0,0.008]
[1722226127825,0.00232437,69499.0,69498.0,0.008]
[1722226128046,0.11743337,69499.0,69498.0,0.008]
[1722226128246,0.24519468,69499.0,69498.0,0.008]
[1722226128451,0.0015542,69498.0,69494.0,0.115117]
[1722226128599,0.001,69497.0,69496.0,0.009]
[1722226129185,0.02358616,69497.0,69496.0,0.009]
[1722226129794,0.02258616,69497.0,69494.0,0.115117]
[1722226130356,0.02358616,69497.0,69496.0,0.007]
[1722226130548,0.001,69497.0,69496.0,0.007]
[1722226130925,0.002,69497.0,69496.0,0.007]
[1722226131586,0.001,69497.0,69496.0,0.007]
[1722226131715,0.002,69497.0,69496.0,0.015]
[1722226132358,0.001,69497.0,69496.0,0.008]
[1722226132768,0.002,69497.0,69496.0,0.008]
[1722226133990,0.001,69497.0,69496.0,0.008]
[1722226135560,0.13007606,69497.0,69496.0,0.008]
[1722226135733,0.002,69497.0,69496.0,0.015]
[1722226135909,0.002,69497.0,69496.0,0.130114]
[1722226136852,0.002,69497.0,69496.0,0.360343]
[1722226137071,0.002,69497.0,69496.0,0.130114]
[1722226138224,0.002,69497.0,69496.0,0.360343]
[1722226141102,0.002,69497.0,69496.0,0.590572]
[1722226142695,0.002,69497.0,69496.0,0.653672]
[1722226142995,0.002,69497.0,69496.0,0.733272]
[1722226145729,0.02458533,69497.0,69496.0,0.733272]
[1722226146895,0.002,69497.0,69496.0,0.733272]
[1722226149157,0.002,69497.0,69496.0,0.503043]
[1722226149458,0.002,69497.0,69496.0,0.360343]
[1722226149643,0.13113461,69497.0,69496.0,0.360343]
[1722226150088,0.15372037,69497.0,69496.0,0.360343]
[1722226152295,0.02458576,69497.0,69496.0,0.360343]
[1722226153298,0.02458576,69497.0,69496.0,0.361267]
[1722226157958,0.02458576,69497.0,69496.0,0.360267]
[1722226158180,0.02613996,69497.0,69496.0,0.360267]
[1722226158385,0.02458576,69497.0,69496.0,0.360267]
[1722226158780,0.02558575,69497.0,69496.0,0.360267]
[1722226161331,0.00299999,69497.0,69496.0,0.360267]
[1722226162557,0.002,69497.0,69496.0,0.360267]
[1722226162728,0.00299999,69497.0,69496.0,0.360267]
[1722226164656,0.02558591,69497.0,69496.0,0.360267]
[1722226166024,0.02458592,69497.0,69496.0,0.360267]
[1722226166230,0.02558591,69497.0,69496.0,0.360267]
[1722226166714,0.02458592,69497.0,69496.0,0.360267]
[1722226166887,0.02558591,69497.0,69496.0,0.360267]
[1722226167087,0.02558591,69497.0,69496.0,0.014924]
[1722226167330,0.60114791,69497.0,69496.0,0.014924]
[1722226167540,0.5163047,69497.0,69496.0,0.014924]
[1722226167742,0.62414791,69497.0,69496.0,0.014924]
[1722226167868,0.62314792,69497.0,69496.0,0.014924]
[1722226168074,0.62414791,69497.0,69496.0,0.014924]
[1722226168930,1.00067292,69497.0,69496.0,0.014924]
[1722226169112,1.01259493,69497.0,69496.0,0.014924]
[1722226169566,0.99000901,69497.0,69496.0,0.014924]
[1722226169772,1.00504909,69497.0,69496.0,0.014924]
[1722226170154,1.05504909,69497.0,69496.0,0.014924]
[1722226170315,1.19020674,69497.0,69496.0,0.014924]
[1722226171318,1.05504909,69497.0,69496.0,0.014924]
[1722226171698,1.05504844,69497.0,69496.0,0.014924]
[1722226172758,1.07763674,69497.0,69496.0,0.014924]
[1722226173163,1.05504844,69497.0,69496.0,0.014924]
[1722226173419,1.04312708,69497.0,69496.0,0.014924]
[1722226173755,1.16682025,69497.0,69496.0,0.014924]
[1722226173954,1.17774149,69497.0,69496.0,0.007924]
[1722226174161,1.17674149,69497.0,69496.0,0.000924]
[1722226174407,1.18074149,69497.0,69496.0,0.000924]
[1722226174946,1.04912708,69497.0,69496.0,0.000924]
[1722226175118,1.061048,69497.0,69496.0,0.000924]
[1722226175321,1.04912708,69497.0,69496.0,0.000924]
[1722226175625,1.06104514,69497.0,69496.0,0.000924]
[1722226177667,1.06104589,69497.0,69496.0,0.000924]
[1722226177891,1.17653094,69497.0,69496.0,0.000924]
[1722226178087,1.06104597,69497.0,69496.0,0.000924]
[1722226179271,1.06104597,69497.0,69487.0,0.008899]
[1722226179272,0.57562,69490.0,69489.0,0.00665195]
[1722226179499,0.68232,69490.0,69489.0,0.00665195]
[1722226180307,0.70490968,69490.0,69489.0,0.00665195]
[1722226180509,0.70490968,69490.0,69489.0,0.01165195]
[1722226181128,0.70490968,69490.0,69489.0,0.01565195]
[1722226182471,0.68232,69490.0,69489.0,0.01565195]
[1722226183458,0.80307841,69490.0,69489.0,0.01565195]
[1722226183655,0.86407841,69490.0,69489.0,0.01565195]
[1722226183858,0.74332,69490.0,69489.0,0.01565195]
[1722226184062,1.1024445,69490.0,69489.0,0.01565195]
[1722226184463,0.973568,69490.0,69489.0,0.01565195]
[1722226184670,1.056568,69490.0,69489.0,0.01565195]
[1722226184880,1.12160808,69490.0,69489.0,0.01565195]
[1722226185057,1.24376889,69490.0,69489.0,0.01565195]
[1722226185451,0.69736008,69490.0,69489.0,0.01565195]
[1722226185650,0.03763024,69490.0,69489.0,0.01565195]
[1722226185890,0.03763024,69490.0,69489.0,0.13077795]
[1722226186099,0.1450163,69490.0,69489.0,0.50122995]
[1722226186325,0.03763024,69490.0,69489.0,0.96173395]
[1722226187006,0.03763024,69490.0,69489.0,0.73148195]
[1722226187575,0.10207205,69490.0,69489.0,0.73148195]
[1722226187819,0.03763024,69490.0,69489.0,0.73148195]
[1722226188390,0.10207205,69490.0,69489.0,0.73148195]
[1722226189158,0.10207205,69490.0,69489.0,0.72748195]
[1722226189682,0.10207205,69490.0,69489.0,0.72248195]
[1722226190469,0.03763024,69490.0,69489.0,0.72648195]
[1722226190950,0.03763024,69490.0,69489.0,0.72248195]
[1722226191351,0.03863024,69490.0,69489.0,0.73248195]
[1722226192581,0.03963024,69490.0,69489.0,0.74248195]
[1722226192790,0.03963024,69490.0,69489.0,0.51222995]
[1722226193588,0.12556546,69490.0,69489.0,0.51222995]
[1722226193945,0.12557917,69490.0,69489.0,0.51222995]
[1722226194144,0.12557917,69490.0,69489.0,0.28197795]
[1722226194348,0.03963024,69490.0,69489.0,0.28197795]
[1722226194546,0.14706573,69490.0,69489.0,0.28197795]
[1722226195120,0.14706573,69490.0,69489.0,0.51222995]
[1722226195997,0.03963024,69490.0,69489.0,0.51222995]
[1722226196371,0.14707327,69490.0,69489.0,0.51222995]
[1722226197157,0.14707729,69490.0,69489.0,0.51222995]
[1722226197559,0.12448713,69490.0,69489.0,0.14177795]
[1722226198145,0.12448713,69490.0,69489.0,0.37202995]
[1722226198574,0.01704008,69490.0,69489.0,0.37202995]
[1722226198819,0.01704008,69490.0,69489.0,0.60228195]
[1722226199790,0.12452381,69490.0,69489.0,0.60228195]
[1722226201034,0.08151838,69490.0,69489.0,0.97363395]
[1722226202600,0.0815245,69490.0,69489.0,0.97363395]
[1722226203040,0.01704008,69490.0,69489.0,0.97363395]
[1722226203216,0.08152097,69490.0,69489.0,0.97363395]
[1722226203415,0.01704008,69490.0,69489.0,0.97363395]
[1722226203613,0.08152529,69490.0,69489.0,0.97363395]
[1722226204842,0.10411326,69490.0,69489.0,0.97363395]
[1722226205222,0.1041152,69490.0,69489.0,0.97363395]
[1722226205997,0.08152723,69490.0,69489.0,0.97363395]
[1722226206348,0.01704008,69490.0,69489.0,0.97363395]
[1722226208586,0.01704008,69490.0,69489.0,1.02363395]
[1722226208787,0.01604008,69490.0,69489.0,0.96363395]
[1722226209224,0.03962703,69490.0,69489.0,0.97363395]
[1722226209432,0.01704008,69490.0,69489.0,0.97363395]
[1722226209843,0.01604008,69490.0,69489.0,0.96363395]
[1722226210050,0.01704008,69490.0,69489.0,0.97363395]
[1722226210455,0.01704008,69490.0,69489.0,0.96363395]
[1722226210661,0.01604008,69490.0,69489.0,0.96363395]
[1722226210818,0.01704008,69490.0,69489.0,0.97763395]
[1722226213251,0.01704008,69490.0,69489.0,0.03065195]
[1722226213455,0.10456581,69490.0,69489.0,0.14577795]
[1722226213652,0.01859428,69490.0,69489.0,0.37602995]
[1722226213881,0.01704008,69490.0,69489.0,0.37602995]
[1722226214456,0.1245045,69490.0,69489.0,0.37602995]
[1722226214685,0.01704008,69490.0,69489.0,0.37602995]
[1722226214933,0.12448939,69490.0,69489.0,0.37602995]
[1722226215148,0.12448939,69490.0,69489.0,0.14577795]
[1722226215491,0.12448932,69490.0,69489.0,0.14577795]
[1722226216172,0.23961332,69490.0,69489.0,0.03065195]
[1722226216374,0.44060122,69490.0,69489.0,0.03065195]
[1722226216574,0.65134049,69490.0,69489.0,0.03065195]
[1722226216786,0.7756494,69490.0,69489.0,0.03065195]
[1722226217156,0.75306008,69490.0,69489.0,0.03065195]
[1722226217765,0.75206008,69490.0,69489.0,0.01665195]
[1722226217970,0.75106008,69490.0,69489.0,0.00665195]
[1722226218185,0.75206008,69490.0,69489.0,0.01665195]
[1722226218772,0.75306008,69490.0,69489.0,0.02365195]
[1722226218970,0.52281208,69490.0,69489.0,0.02365195]
[1722226219544,0.65174207,69490.0,69489.0,0.02365195]
[1722226219896,0.65074207,69490.0,69489.0,0.01365195]
[1722226220262,0.88199007,69490.0,69489.0,0.02065195]
[1722226220456,0.7756496,69490.0,69489.0,0.02065195]
[1722226221103,0.75306008,69490.0,69489.0,0.02065195]
[1722226225438,0.98330808,69490.0,69489.0,0.02065195]
[1722226225649,1.17835918,69490.0,69489.0,0.02065195]
[1722226225850,1.05134191,69490.0,69489.0,0.02065195]
[1722226228059,1.05207874,69490.0,69489.0,0.02065195]
[1722226228280,0.997792,69488.0,69487.0,0.00696024]
[1722226228504,1.24947701,69488.0,69487.0,0.00696024]
[1722226229199,1.3925764,69488.0,69487.0,0.00696024]
[1722226229407,1.104492,69488.0,69487.0,0.00696024]
[1722226230434,1.104492,69488.0,69487.0,0.01196024]
[1722226231833,1.24942886,69488.0,69487.0,0.01196024]
[1722226233413,1.104492,69488.0,69487.0,0.01196024]
[1722226233827,1.24759139,69488.0,69487.0,0.01196024]
[1722226234314,1.24759139,69488.0,69487.0,0.01696024]
[1722226234851,1.104492,69488.0,69487.0,0.01696024]
[1722226235455,0.740537,69488.0,69487.0,0.01696024]
[1722226235667,0.824237,69488.0,69487.0,0.01696024]
[1722226235846,0.744337,69488.0,69487.0,0.01696024]
[1722226237625,0.368382,69488.0,69487.0,0.01696024]
[1722226237881,0.47467367,69488.0,69487.0,0.01696024]
[1722226238513,0.70492867,69488.0,69487.0,0.01696024]
[1722226240948,0.682337,69488.0,69487.0,0.01696024]
[1722226243405,0.70051239,69488.0,69487.0,0.01696024]
[1722226243878,0.70058774,69488.0,69487.0,0.01696024]
[1722226244118,0.70058739,69488.0,69487.0,0.01696024]
[1722226247228,0.69994022,69488.0,69487.0,0.01696024]
[1722226248186,0.46968522,69488.0,69487.0,0.01696024]
[1722226248675,0.452082,69488.0,69487.0,0.01696024]
[1722226248952,0.70073262,69488.0,69487.0,0.01696024]
[1722226249660,0.47047762,69488.0,69487.0,0.01696024]
[1722226249897,0.452082,69488.0,69487.0,0.01696024]
[1722226250372,0.58074218,69488.0,69487.0,0.01696024]
[1722226250834,0.58075032,69488.0,69487.0,0.01696024]
[1722226251340,0.60334181,69488.0,69487.0,0.01696024]
[1722226251570,0.47467349,69488.0,69487.0,0.01696024]
[1722226251796,0.47467349,69488.0,69487.0,0.01624984]
[1722226252254,0.70492849,69488.0,69487.0,0.01624984]
[1722226252999,0.47467349,69488.0,69487.0,0.01624984]
[1722226253460,0.49317175,69488.0,69487.0,0.01624984]
[1722226254145,0.70083526,69488.0,69487.0,0.01624984]
[1722226254358,0.47058026,69488.0,69487.0,0.01624984]
[1722226254775,0.70083526,69488.0,69487.0,0.01624984]
[1722226255620,0.47058026,69488.0,69487.0,0.01624984]
[1722226256059,0.70083526,69488.0,69487.0,0.01624984]
[1722226256747,0.70077026,69488.0,69487.0,0.01624984]
[1722226257618,0.72336197,69488.0,69487.0,0.01624984]
[1722226257827,0.70077026,69488.0,69487.0,0.01624984]
[1722226258498,0.84566591,69488.0,69487.0,0.01624984]
[1722226259506,0.70077026,69488.0,69487.0,0.01624984]
[1722226259704,0.683177,69488.0,69487.0,0.01624984]
[1722226259946,1.17384173,69488.0,69487.0,0.01624984]
[1722226260079,1.22270421,69488.0,69487.0,0.01624984]
[1722226260276,0.89359148,69488.0,69487.0,0.01624984]
[1722226261151,0.89359148,69488.0,69487.0,0.01124984]
[1722226261326,0.76309148,69488.0,69487.0,0.01124984]
[1722226261527,0.76309148,69488.0,69487.0,0.01224984]
[1722226261528,0.77109148,69488.0,69487.0,0.01224984]
[1722226261728,0.70859148,69488.0,69487.0,0.01224984]
[1722226262070,0.4785944,69488.0,69487.0,0.01224984]
[1722226262273,0.7088494,69488.0,69487.0,0.01224984]
[1722226262477,0.73144104,69488.0,69487.0,0.01224984]
[1722226263106,0.74044104,69488.0,69487.0,0.01324984]
[1722226263463,0.73144104,69488.0,69487.0,0.00724984]
[1722226263686,0.42148604,69488.0,69487.0,0.00724984]
[1722226263893,0.203603,69488.0,69487.0,0.08464984]
[1722226264109,0.18101136,69488.0,69487.0,0.08464984]
[1722226264297,0.03584,69488.0,69487.0,0.08464984]
[1722226265248,0.02784,69488.0,69487.0,0.08364984]
[1722226265451,0.1730184,69488.0,69487.0,0.08364984]
[1722226265574,0.02784,69488.0,69487.0,0.08364984]
[1722226267529,0.03484,69488.0,69487.0,0.06205864]
[1722226268017,0.02784,69488.0,69487.0,0.06105864]
[1722226268161,0.11154,69488.0,69487.0,0.06105864]
[1722226268342,0.230667,69488.0,69487.0,0.06105864]
[1722226269153,0.11554,69488.0,69487.0,0.06105864]
[1722226269360,0.230667,69488.0,69487.0,0.06105864]
[1722226269982,0.11554,69488.0,69484.0,0.070099]
[1722226270188,0.12905253,69485.0,69484.0,0.070099]
[1722226270403,0.24418453,69485.0,69484.0,0.146599]
[1722226270606,0.429097,69485.0,69484.0,0.008899]
[1722226271298,0.682362,69485.0,69484.0,0.008899]
[1722226271728,0.452097,69485.0,69484.0,0.008899]
[1722226271920,0.682362,69485.0,69484.0,0.008899]
[1722226273703,0.683362,69485.0,69484.0,0.008899]
[1722226273904,0.684362,69485.0,69484.0,0.008899]
[1722226274082,0.532097,69485.0,69484.0,0.008899]
[1722226274265,0.454097,69485.0,69484.0,0.008899]
[1722226274664,0.684362,69485.0,69484.0,0.008899]
[1722226275266,0.002,69485.0,69484.0,0.008899]
[1722226275485,0.117132,69485.0,69484.0,0.008899]
[1722226276304,0.002,69485.0,69484.0,0.008899]
[1722226276929,0.001,69485.0,69484.0,0.008899]
[1722226277269,0.115131,69486.0,69484.0,0.010899]
[1722226277470,0.001,69485.0,69484.0,0.010899]
[1722226278052,0.0235914,69485.0,69484.0,0.010899]
[1722226278413,0.0225914,69485.0,69484.0,0.010899]
[1722226278596,0.115131,69486.0,69484.0,0.010899]
[1722226278797,0.115131,69486.0,69484.0,0.012899]
[1722226279096,0.115132,69485.0,69484.0,0.012899]
[1722226279338,0.429097,69485.0,69484.0,0.012899]
[1722226279510,0.198832,69485.0,69484.0,0.012899]
[1722226279819,0.429097,69485.0,69484.0,0.012899]
[1722226280030,0.198832,69485.0,69484.0,0.012899]
[1722226280224,0.429097,69485.0,69484.0,0.012899]
[1722226280518,0.429097,69485.0,69484.0,0.010899]
[1722226280715,0.429097,69485.0,69484.0,0.009899]
[1722226281336,0.429097,69485.0,69484.0,0.011899]
[1722226281542,0.429097,69485.0,69484.0,0.010899]
[1722226281702,0.68195344,69485.0,69484.0,0.010899]
[1722226281902,0.68195344,69485.0,69484.0,0.012899]
[1722226282309,0.659362,69485.0,69484.0,0.012899]
[1722226282710,0.575662,69485.0,69484.0,0.012899]